Workbook

Sheet Sheet1
A1: 附件：
A2: 双阳区2025年脱贫（监测）户庭院经济第二批阶段性奖补人员名单（补充资金部分）
A3: 汇总时间：2025.9.19
A4: 序号 | B4: 乡镇（街道） | C4: 村 | D4: 户主姓名 | E4: 身份证号码 | F4: 家庭人口（人） | G4: 联系电话 | H4: 小种植 | K4: 小养殖 | N4: 其他类 （小加工、小田园、小商贸） | Q4: 小种植拟奖补金额（元） | R4: 小养殖及其他类拟奖补金额（元） | S4: 拟奖补金额合计（元） | T4: 备注 | W4: 填写说明： 1、已收益金额填写毛收入。 2、奖补面积按照产生收益的面积计算，自食自用的种植面积不计入其中。 3、养殖数量按照统计范围期间的最大养殖规模填写。 4、发展规模根据实际，可填写单位时间内的产量或收益等情况。 5、拟奖补情况中，小种植拟奖补金额=奖补面积*2（全年不超过1200元）；小养殖及其他类拟奖补金额=（小养殖已收益+其他类已收益）*20%（全年不超过2300元）；拟奖补金额合计=小种植拟奖补金额+小养殖及其他类拟奖补金额（全年不超过3500元）。 6、表头已注明单位的，表格内仅填写数值即可，需要填写多个数据的用顿号隔开。
H5: 作物名称 | I5: 奖补面积（平方米） | J5: 2025年6月-2025年8月收益（元） | K5: 家禽（畜）名称 | L5: 养殖数量（头、只） | M5: 2025年6月-2025年8月收益（元） | N5: 发展方式 | O5: 发展规模 | P5: 2025年6月-2025年8月收益（元）
A6: 1 | B6: 平湖街道 | C6: 杨家村 | D6: 袁永忠 | E6: 220125196405170616 | F6: 4 | G6: 15754393522 | H6: 土豆.黄瓜.茄子.豆角 | I6: 300 | J6: 1800 | Q6: 600 | R6: 0 | S6: 600
A7: 2 | B7: 平湖街道 | C7: 杨家村 | D7: 张树军 | E7: 220125196907030613 | F7: 2 | G7: 13944159216 | H7: 土豆.黄瓜.茄子.豆角 | I7: 200 | J7: 1200 | Q7: 400 | R7: 0 | S7: 400
A8: 3 | B8: 平湖街道 | C8: 杨家村 | D8: 张柏善 | E8: 220125195503050213 | F8: 2 | G8: 13630541153 | H8: 土豆.黄瓜.茄子.豆角 | I8: 300 | J8: 1800 | Q8: 600 | R8: 0 | S8: 600
A9: 4 | B9: 平湖街道 | C9: 杨家村 | D9: 贺桂珍 | E9: 220125195506200621 | F9: 3 | G9: 15504466969 | H9: 土豆.黄瓜.茄子.豆角 | I9: 200 | J9: 1200 | Q9: 400 | R9: 0 | S9: 400
A10: 5 | B10: 平湖街道 | C10: 杨家村 | D10: 姜纪财 | E10: 22011219831104021x | F10: 4 | G10: 13179013021 | H10: 土豆.黄瓜.茄子.豆角 | I10: 300 | J10: 1800 | Q10: 600 | R10: 0 | S10: 600
A11: 6 | B11: 平湖街道 | C11: 杨家村 | D11: 建永国 | E11: 22012519790808061x | F11: 3 | G11: 15943148524 | H11: 土豆.黄瓜.茄子.豆角 | I11: 100 | J11: 600 | Q11: 200 | R11: 0 | S11: 200
A12: 7 | B12: 平湖街道 | C12: 杨家村 | D12: 曹景军 | E12: 220125195904260611 | F12: 3 | G12: 13596412934 | H12: 土豆.黄瓜.茄子.豆角 | I12: 300 | J12: 1800 | Q12: 600 | R12: 0 | S12: 600
A13: 8 | B13: 平湖街道 | C13: 杨家村 | D13: 赵福忠 | E13: 220125195904260611 | F13: 3 | G13: 13630536332 | H13: 土豆.黄瓜.茄子.豆角 | I13: 300 | J13: 1800 | Q13: 600 | R13: 0 | S13: 600
A14: 9 | B14: 平湖街道 | C14: 杨家村 | D14: 张世海 | E14: 220125197101100613 | F14: 3 | G14: 17843187010 | H14: 土豆.黄瓜.茄子.豆角 | I14: 200 | J14: 1200 | Q14: 400 | R14: 0 | S14: 400
A15: 10 | B15: 平湖街道 | C15: 杨家村 | D15: 陆明林 | E15: 220125196410250610 | F15: 3 | G15: 13214493689 | H15: 土豆.黄瓜.茄子.豆角 | I15: 400 | J15: 2400 | Q15: 800 | R15: 0 | S15: 800
A16: 11 | B16: 平湖街道 | C16: 杨家村 | D16: 赵建国 | E16: 220125196311060619 | F16: 2 | G16: 15948262633 | H16: 土豆.黄瓜.茄子.豆角 | I16: 300 | J16: 1800 | Q16: 600 | R16: 0 | S16: 600
A17: 12 | B17: 平湖街道 | C17: 杨家村 | D17: 王淑兰 | E17: 220125195712010626 | F17: 2 | G17: 13252640321 | H17: 土豆.黄瓜.茄子.豆角 | I17: 200 | J17: 1200 | Q17: 400 | R17: 0 | S17: 400
A18: 13 | B18: 平湖街道 | C18: 杨家村 | D18: 郑德福 | E18: 220125197909060618 | F18: 4 | G18: 19990573376 | H18: 土豆.黄瓜.茄子.豆角 | I18: 300 | J18: 1800 | Q18: 600 | R18: 0 | S18: 600
A19: 14 | B19: 平湖街道 | C19: 杨家村 | D19: 马占刚 | E19: 220125196904100612 | F19: 3 | G19: 15944150786 | H19: 鸡心果.秋海棠 | I19: 200 | J19: 1200 | Q19: 400 | R19: 0 | S19: 400
A20: 15 | B20: 平湖街道 | C20: 杨家村 | D20: 赵国辉 | E20: 220125197412050617 | F20: 3 | G20: 13404799876 | H20: 土豆.黄瓜.茄子.豆角 | I20: 200 | J20: 1200 | Q20: 400 | R20: 0 | S20: 400
A21: 16 | B21: 平湖街道 | C21: 杨家村 | D21: 狄庆龙 | E21: 220125197004020611 | F21: 3 | G21: 15844159544 | H21: 土豆.黄瓜.茄子.豆角 | I21: 300 | J21: 1800 | Q21: 600 | R21: 0 | S21: 600
A22: 17 | B22: 平湖街道 | C22: 小龙村 | D22: 毕桂平 | E22: 220125196808030642 | F22: 2 | G22: 13234308980 | H22: 豆角、土豆、茄子、辣椒、黄瓜 | I22: 200 | J22: 1200 | Q22: 400 | R22: 0 | S22: 400
A23: 18 | B23: 平湖街道 | C23: 小龙村 | D23: 张泽宇 | E23: 220112197806130634 | F23: 1 | G23: 13180997342 | H23: 豆角、土豆 | I23: 200 | J23: 1200 | Q23: 400 | R23: 0 | S23: 400
A24: 19 | B24: 平湖街道 | C24: 小龙村 | D24: 李凤香 | E24: 220221196905011646 | F24: 2 | G24: 18744198843 | H24: 豆角、土豆、茄子、辣椒、黄瓜 | I24: 320 | J24: 1920 | Q24: 640 | R24: 0 | S24: 640
A25: 20 | B25: 平湖街道 | C25: 小龙村 | D25: 赵玉珠 | E25: 220125196210080637 | F25: 2 | G25: 15948286583 | H25: 豆角、土豆、茄子、辣椒、黄瓜 | I25: 280 | J25: 1680 | Q25: 560 | R25: 0 | S25: 560
A26: 21 | B26: 平湖街道 | C26: 小龙村 | D26: 郭俊 | E26: 220125195806200615 | F26: 4 | G26: 15567719970 | H26: 豆角、土豆、茄子、辣椒、黄瓜 | I26: 300 | J26: 1800 | Q26: 600 | R26: 0 | S26: 600
A27: 22 | B27: 平湖街道 | C27: 小龙村 | D27: 杨洪丰 | E27: 220125195909010611 | F27: 5 | G27: 13756375447 | H27: 豆角、土豆、茄子、辣椒、黄瓜 | I27: 200 | J27: 1200 | Q27: 400 | R27: 0 | S27: 400
A28: 23 | B28: 平湖街道 | C28: 小龙村 | D28: 王凤华 | E28: 220125195205010648 | F28: 1 | G28: 13943075649 | H28: 豆角、土豆、茄子、辣椒、黄瓜 | I28: 200 | J28: 1200 | Q28: 400 | R28: 0 | S28: 400
A29: 24 | B29: 平湖街道 | C29: 小龙村 | D29: 陈明启 | E29: 220125195012170610 | F29: 2 | G29: 15948287591 | H29: 豆角、土豆、茄子、辣椒、黄瓜 | I29: 200 | J29: 1200 | Q29: 400 | R29: 0 | S29: 400
A30: 25 | B30: 平湖街道 | C30: 小龙村 | D30: 朱显岐 | E30: 220125195510050638 | F30: 2 | G30: 15843164754 | H30: 豆角、土豆、茄子、辣椒、黄瓜 | I30: 400 | J30: 2400 | Q30: 800 | R30: 0 | S30: 800
A31: 26 | B31: 平湖街道 | C31: 小龙村 | D31: 李云中 | E31: 220125196112140616 | F31: 5 | G31: 13174399930 | H31: 豆角、土豆、茄子、辣椒、黄瓜 | I31: 350 | J31: 2100 | Q31: 700 | R31: 0 | S31: 700
A32: 27 | B32: 平湖街道 | C32: 小龙村 | D32: 李岳国 | E32: 220125195410020634 | F32: 2 | G32: 15144091774 | H32: 豆角、土豆、茄子、辣椒、黄瓜 | I32: 200 | J32: 1200 | Q32: 400 | R32: 0 | S32: 400
A33: 28 | B33: 平湖街道 | C33: 小龙村 | D33: 李德生 | E33: 220125194810230636 | F33: 2 | G33: 13630536396 | H33: 豆角、土豆、茄子、辣椒、黄瓜 | I33: 300 | J33: 1800 | Q33: 600 | R33: 0 | S33: 600
A34: 29 | B34: 平湖街道 | C34: 小龙村 | D34: 韩立平 | E34: 220125197209240634 | F34: 2 | G34: 15567716220 | H34: 豆角、土豆、茄子、辣椒、黄瓜 | I34: 400 | J34: 2400 | Q34: 800 | R34: 0 | S34: 800
A35: 30 | B35: 平湖街道 | C35: 小龙村 | D35: 杨洪俊 | E35: 220125196804020631 | F35: 3 | G35: 15948123993 | H35: 豆角、茄子 | I35: 600 | J35: 3600 | Q35: 1200 | R35: 0 | S35: 1200
A36: 31 | B36: 平湖街道 | C36: 小龙村 | D36: 王兴宇 | E36: 22011219851125049X | F36: 3 | G36: 15568905257 | H36: 豆角、土豆、茄子、辣椒、黄瓜 | I36: 200 | J36: 1200 | Q36: 400 | R36: 0 | S36: 400
A37: 32 | B37: 平湖街道 | C37: 小龙村 | D37: 李德龙 | E37: 220125195104140638 | F37: 2 | G37: 13756331591 | H37: 豆角、土豆、茄子、辣椒、黄瓜 | I37: 300 | J37: 1800 | Q37: 600 | R37: 0 | S37: 600
A38: 33 | B38: 平湖街道 | C38: 小龙村 | D38: 李东亮 | E38: 220112197105240435 | F38: 1 | G38: 13689856469 | H38: 豆角、土豆、茄子、辣椒、黄瓜 | I38: 300 | J38: 1800 | Q38: 600 | R38: 0 | S38: 600
A39: 34 | B39: 平湖街道 | C39: 小龙村 | D39: 仲国成 | E39: 220125197606300610 | F39: 2 | G39: 18743186159 | H39: 豆角、土豆、茄子、辣椒、黄瓜 | I39: 200 | J39: 1200 | Q39: 400 | R39: 0 | S39: 400
A40: 35 | B40: 平湖街道 | C40: 小龙村 | D40: 狄庆凤 | E40: 220125195710260613 | F40: 2 | G40: 13500854836 | H40: 豆角、土豆、茄子、辣椒、黄瓜 | I40: 300 | J40: 1800 | Q40: 600 | R40: 0 | S40: 600
A41: 36 | B41: 平湖街道 | C41: 小龙村 | D41: 朱福君 | E41: 220125196307150638 | F41: 2 | G41: 15943182321 | H41: 豆角、土豆、茄子、辣椒、黄瓜 | I41: 200 | J41: 1200 | Q41: 400 | R41: 0 | S41: 400
A42: 37 | B42: 平湖街道 | C42: 小龙村 | D42: 李德福 | E42: 220125196706200612 | F42: 4 | G42: 15944007336 | H42: 豆角、土豆、茄子、辣椒、黄瓜 | I42: 200 | J42: 1200 | Q42: 400 | R42: 0 | S42: 400
A43: 38 | B43: 平湖街道 | C43: 小龙村 | D43: 狄庆武 | E43: 220125197305040616 | F43: 4 | G43: 15567743122 | H43: 豆角、土豆、茄子、辣椒、黄瓜 | I43: 300 | J43: 1800 | Q43: 600 | R43: 0 | S43: 600
A44: 39 | B44: 平湖街道 | C44: 双桥村 | D44: 张忠军 | E44: 220521195711054818 | F44: 2 | G44: 15844155376 | H44: 豆角、土豆、茄子、辣椒、黄瓜 | I44: 197 | J44: 1200 | Q44: 394 | R44: 0 | S44: 394
A45: 40 | B45: 平湖街道 | C45: 双桥村 | D45: 刘艳华 | E45: 220112195911100446 | F45: 1 | G45: 18844521933 | H45: 豆角、土豆、茄子、辣椒、黄瓜 | I45: 30 | J45: 180 | Q45: 60 | R45: 0 | S45: 60
A46: 41 | B46: 平湖街道 | C46: 双桥村 | D46: 滕海彬 | E46: 220112197402190438 | F46: 3 | G46: 15568908597 | H46: 豆角、土豆、茄子、辣椒、黄瓜 | I46: 100 | J46: 600 | Q46: 200 | R46: 0 | S46: 200
A47: 42 | B47: 平湖街道 | C47: 双湾村 | D47: 李晓山 | E47: 220112198208250657 | F47: 4 | G47: 13756330656 | H47: 粘玉米 | I47: 3000 | J47: 10500 | Q47: 1200 | R47: 0 | S47: 1200
A48: 43 | B48: 平湖街道 | C48: 林家村 | D48: 李洪生 | E48: 220125197902122636 | F48: 2 | G48: 18744198629 | H48: 土豆、白菜 | I48: 600 | J48: 700 | Q48: 1200 | R48: 0 | S48: 1200
A49: 44 | B49: 平湖街道 | C49: 林家村 | D49: 刘万阳 | E49: 220125197101010618 | F49: 3 | G49: 15843162723 | H49: 土豆、豆角 | I49: 600 | J49: 800 | Q49: 1200 | R49: 0 | S49: 1200
A50: 45 | B50: 平湖街道 | C50: 林家村 | D50: 卢万福 | E50: 220125197004010616 | F50: 2 | G50: 15944009624 | H50: 土豆、豆角 | I50: 500 | J50: 800 | Q50: 1000 | R50: 0 | S50: 1000
A51: 46 | B51: 平湖街道 | C51: 林家村 | D51: 赵洪全 | E51: 220125197001070613 | F51: 3 | G51: 13578858079 | H51: 土豆、白菜 | I51: 500 | J51: 500 | Q51: 1000 | R51: 0 | S51: 1000
A52: 47 | B52: 平湖街道 | C52: 林家村 | D52: 杨晓忠 | E52: 22012519790301061X | F52: 3 | G52: 15804492353 | H52: 茄子、土豆 | I52: 300 | J52: 500 | Q52: 600 | R52: 0 | S52: 600
A53: 48 | B53: 平湖街道 | C53: 林家村 | D53: 冯志宝 | E53: 220125197409030631 | F53: 4 | G53: 13624410466 | H53: 茄子、土豆 | I53: 600 | J53: 800 | Q53: 1200 | R53: 0 | S53: 1200
A54: 49 | B54: 平湖街道 | C54: 林家村 | D54: 陈良贵 | E54: 220125197510010619 | F54: 4 | G54: 13943110065 | H54: 茄子、土豆 | I54: 600 | J54: 400 | Q54: 1200 | R54: 0 | S54: 1200
A55: 50 | B55: 平湖街道 | C55: 林家村 | D55: 费文有 | E55: 220125196405090632 | F55: 1 | G55: 13624411302 | H55: 土豆、白菜 | I55: 500 | J55: 800 | Q55: 1000 | R55: 0 | S55: 1000
A56: 51 | B56: 平湖街道 | C56: 林家村 | D56: 葛桂花 | E56: 220125197206090618 | F56: 2 | G56: 15243177639 | H56: 茄子、土豆 | I56: 600 | J56: 800 | Q56: 1200 | R56: 0 | S56: 1200
A57: 52 | B57: 平湖街道 | C57: 林家村 | D57: 张喜军 | E57: 220125195806280619 | F57: 2 | G57: 18844521998 | H57: 茄子、土豆 | I57: 600 | J57: 600 | Q57: 1200 | R57: 0 | S57: 1200
A58: 53 | B58: 平湖街道 | C58: 林家村 | D58: 汪洋 | E58: 220125197908180415 | F58: 4 | G58: 18704498709 | H58: 茄子、土豆 | I58: 400 | J58: 700 | Q58: 800 | R58: 0 | S58: 800
A59: 54 | B59: 平湖街道 | C59: 林家村 | D59: 肖庆良 | E59: 220125198011100614 | F59: 4 | G59: 13353143538 | H59: 豆角、黄瓜 | I59: 400 | J59: 300 | Q59: 800 | R59: 0 | S59: 800
A60: 55 | B60: 平湖街道 | C60: 林家村 | D60: 迟凤秋 | E60: 220125196812214225 | F60: 4 | G60: 13804396710 | H60: 土豆、白菜 | I60: 450 | J60: 800 | Q60: 900 | R60: 0 | S60: 900
A61: 56 | B61: 平湖街道 | C61: 林家村 | D61: 赵艳君 | E61: 220125197801060659 | F61: 3 | G61: 13756976932 | H61: 豆角、黄瓜 | I61: 500 | J61: 800 | Q61: 1000 | R61: 0 | S61: 1000
A62: 57 | B62: 平湖街道 | C62: 林家村 | D62: 杨松山 | E62: 220125195808070615 | F62: 1 | G62: 15104446055 | H62: 豆角、黄瓜 | I62: 400 | J62: 700 | Q62: 800 | R62: 0 | S62: 800
A63: 58 | B63: 平湖街道 | C63: 林家村 | D63: 刘万龙 | E63: 220125198803120419 | F63: 2 | G63: 16643009466 | H63: 土豆、豆角 | I63: 500 | J63: 600 | Q63: 1000 | R63: 0 | S63: 1000
A64: 59 | B64: 平湖街道 | C64: 林家村 | D64: 刘万臣 | E64: 220125197310230633 | F64: 3 | G64: 16643009296 | H64: 土豆、豆角 | I64: 600 | J64: 600 | Q64: 1200 | R64: 0 | S64: 1200
A65: 60 | B65: 平湖街道 | C65: 林家村 | D65: 李平 | E65: 220125197407150613 | F65: 3 | G65: 13756910173 | H65: 土豆、白菜 | I65: 600 | J65: 900 | Q65: 1200 | R65: 0 | S65: 1200
A66: 61 | B66: 平湖街道 | C66: 林家村 | D66: 董海印 | E66: 220125196707150610 | F66: 1 | G66: 13756592165 | H66: 土豆、豆角 | I66: 300 | J66: 500 | Q66: 600 | R66: 0 | S66: 600
A67: 62 | B67: 平湖街道 | C67: 林家村 | D67: 张贵范 | E67: 220125195611080439 | F67: 5 | G67: 18244009920 | H67: 土豆、豆角 | I67: 400 | J67: 800 | Q67: 800 | R67: 0 | S67: 800
A68: 63 | B68: 平湖街道 | C68: 林家村 | D68: 龚永祥 | E68: 220125195706280638 | F68: 5 | G68: 15754391045 | H68: 土豆、豆角 | I68: 500 | J68: 700 | Q68: 1000 | R68: 0 | S68: 1000
A69: 64 | B69: 平湖街道 | C69: 林家村 | D69: 王淑芝 | E69: 220125195006260628 | F69: 2 | G69: 13756975707 | H69: 土豆、白菜 | I69: 300 | J69: 800 | Q69: 600 | R69: 0 | S69: 600
A70: 65 | B70: 平湖街道 | C70: 林家村 | D70: 刘海友 | E70: 220125195308100611 | F70: 4 | G70: 13894803574 | H70: 土豆、豆角 | I70: 500 | J70: 600 | Q70: 1000 | R70: 0 | S70: 1000
A71: 66 | B71: 平湖街道 | C71: 林家村 | D71: 高春江 | E71: 22012519490704061X | F71: 2 | G71: 13844912359 | H71: 土豆、豆角 | I71: 600 | J71: 700 | Q71: 1200 | R71: 0 | S71: 1200
A72: 67 | B72: 平湖街道 | C72: 林家村 | D72: 陈祥 | E72: 220125196210100618 | F72: 5 | G72: 13944965917 | H72: 茄子、土豆 | I72: 500 | J72: 800 | Q72: 1000 | R72: 0 | S72: 1000
A73: 68 | B73: 平湖街道 | C73: 林家村 | D73: 李长龙 | E73: 220125196501150615 | F73: 3 | G73: 15243176079 | H73: 土豆、豆角 | I73: 300 | J73: 500 | Q73: 600 | R73: 0 | S73: 600
A74: 69 | B74: 平湖街道 | C74: 林家村 | D74: 刘国泉 | E74: 220125195607100638 | F74: 2 | G74: 13578800793 | H74: 茄子、土豆 | I74: 400 | J74: 600 | Q74: 800 | R74: 0 | S74: 800
A75: 70 | B75: 平湖街道 | C75: 林家村 | D75: 赵永江 | E75: 220125195207120613 | F75: 2 | G75: 18844524301 | H75: 土豆、豆角 | I75: 650 | J75: 800 | Q75: 1200 | R75: 0 | S75: 1200
A76: 71 | B76: 平湖街道 | C76: 林家村 | D76: 狄庆丽 | E76: 22012519691013064X | F76: 4 | G76: 15243179811 | H76: 土豆、白菜 | I76: 500 | J76: 800 | Q76: 1000 | R76: 0 | S76: 1000
A77: 72 | B77: 平湖街道 | C77: 林家村 | D77: 李洪玉 | E77: 220125196802070619 | F77: 4 | G77: 18243077178 | H77: 茄子、土豆 | I77: 400 | J77: 500 | Q77: 800 | R77: 0 | S77: 800
A78: 73 | B78: 平湖街道 | C78: 林家村 | D78: 高春保 | E78: 220125197503280610 | F78: 2 | G78: 13614410101 | H78: 茄子、豆角 | I78: 600 | J78: 500 | Q78: 1200 | R78: 0 | S78: 1200
A79: 74 | B79: 平湖街道 | C79: 尚家村 | D79: 王玉兰 | E79: 220125194107030624 | F79: 1 | G79: 13578604368 | K79: 鸡、鹅 | L79: 26、17 | M79: 2800 | Q79: 0 | R79: 560 | S79: 560
A80: 75 | B80: 平湖街道 | C80: 尚家村 | D80: 殷子贵 | E80: 220125196106010612 | F80: 6 | G80: 15584281832 | H80: 婆婆丁 | I80: 240 | J80: 650 | Q80: 480 | R80: 0 | S80: 480
A81: 76 | B81: 平湖街道 | C81: 尚家村 | D81: 魏丽华 | E81: 220125197110100682 | F81: 2 | G81: 18844031392 | H81: 婆婆丁 | I81: 120 | J81: 400 | K81: 鸡、鹅 | L81: 25、8 | M81: 1800 | Q81: 240 | R81: 360 | S81: 600
A82: 77 | B82: 平湖街道 | C82: 尚家村 | D82: 王义君 | E82: 220125195804080656 | F82: 2 | G82: 15844158652 | H82: 婆婆丁 | I82: 180 | J82: 600 | Q82: 360 | R82: 0 | S82: 360
A83: 78 | B83: 平湖街道 | C83: 尚家村 | D83: 张忠和 | E83: 220125197211090612 | F83: 2 | G83: 18743189606 | H83: 婆婆丁 豆角 | I83: 400 | J83: 1250 | Q83: 800 | R83: 0 | S83: 800
A84: 79 | B84: 平湖街道 | C84: 尚家村 | D84: 赵淑华 | E84: 220125196410070628 | F84: 3 | G84: 13944936841 | H84: 婆婆丁 | I84: 150 | J84: 300 | Q84: 300 | R84: 0 | S84: 300
A85: 80 | B85: 平湖街道 | C85: 尚家村 | D85: 高额 | E85: 220125195409200611 | F85: 1 | G85: 13089131428 | H85: 婆婆丁 | I85: 280 | J85: 520 | Q85: 560 | R85: 0 | S85: 560
A86: 81 | B86: 平湖街道 | C86: 尚家村 | D86: 刘志臣 | E86: 220125194612120612 | F86: 2 | G86: 13943075515 | H86: 婆婆丁 | I86: 120 | J86: 500 | K86: 鸡、鹅 | L86: 21、18 | M86: 2450 | Q86: 240 | R86: 490 | S86: 730
A87: 82 | B87: 平湖街道 | C87: 尚家村 | D87: 张淑华 | E87: 220125195201190629 | F87: 1 | G87: 13844918432 | K87: 鸡 | L87: 32 | M87: 2400 | R87: 480 | S87: 480
A88: 83 | B88: 平湖街道 | C88: 尚家村 | D88: 魏玉芳 | E88: 220125194202060629 | F88: 1 | G88: 15844152576 | K88: 鸡 | L88: 22 | M88: 2100 | R88: 420 | S88: 420
A89: 84 | B89: 平湖街道 | C89: 尚家村 | D89: 孙凤霞 | E89: 220112195407280441 | F89: 1 | G89: 13756377230 | K89: 鸡、鹅 | L89: 60、8 | M89: 1850 | R89: 370 | S89: 370
A90: 85 | B90: 平湖街道 | C90: 尚家村 | D90: 刘玉山 | E90: 220125197008230616 | F90: 2 | G90: 15943185990 | K90: 鸡、鹅 | L90: 12、6 | M90: 2000 | R90: 400 | S90: 400
A91: 86 | B91: 平湖街道 | C91: 尚家村 | D91: 范长海 | E91: 220125196703200617 | F91: 2 | G91: 18443057088 | H91: 豆角 | I91: 240 | J91: 1020 | K91: 鸡 | L91: 50 | M91: 3950 | Q91: 480 | R91: 790 | S91: 1270
A92: 87 | B92: 平湖街道 | C92: 常明村 | D92: 王丽杰 | E92: 220112196812270700 | F92: 3 | G92: 13756408970 | K92: 鸡 | L92: 42 | M92: 3200 | Q92: 0 | R92: 640 | S92: 640
A93: 88 | B93: 平湖街道 | C93: 常明村 | D93: 贾云芳 | E93: 22012519530327062x | F93: 1 | G93: 13756409601 | H93: 豇豆.豆角 | I93: 204 | J93: 1800 | K93: 鸡、鹅 | L93: 60.9 | M93: 4060 | Q93: 408 | R93: 812 | S93: 1220
A94: 89 | B94: 平湖街道 | C94: 常明村 | D94: 肖柏峰 | E94: 220125196605250610 | F94: 3 | G94: 15568902819 | N94: 废品回收 | O94: 150 | P94: 3500 | Q94: 0 | R94: 700 | S94: 700
A95: 90 | B95: 平湖街道 | C95: 常明村 | D95: 王国友 | E95: 220125195006020632 | F95: 1 | G95: 13404755754 | N95: 废品回收 | O95: 200 | P95: 3500 | Q95: 0 | R95: 700 | S95: 700
A96: 91 | B96: 平湖街道 | C96: 常明村 | D96: 姜素云 | E96: 220125195412180623 | F96: 1 | G96: 18844030657 | H96: 茄子。豆角 | I96: 206 | J96: 1670 | K96: 鸡、鹅 | L96: 20、9 | M96: 2540 | Q96: 412 | R96: 508 | S96: 920
A97: 92 | B97: 平湖街道 | C97: 常明村 | D97: 孙淑萍 | E97: 220125197108050620 | F97: 1 | G97: 13251714321 | H97: 葱.茄子 | I97: 246 | J97: 2260 | Q97: 492 | R97: 0 | S97: 492
A98: 93 | B98: 平湖街道 | C98: 常明村 | D98: 卜艳华 | E98: 220125195906090628 | F98: 1 | G98: 13596020229 | H98: 黄瓜.黏玉米 | I98: 124 | J98: 1100 | K98: 鹅 | L98: 56 | M98: 5600 | Q98: 248 | R98: 1120 | S98: 1368
A99: 94 | B99: 平湖街道 | C99: 常明村 | D99: 栗廷森 | E99: 220125194708120633 | F99: 1 | G99: 13596410734 | H99: 蒲公英 | I99: 148 | J99: 2240 | Q99: 296 | R99: 0 | S99: 296
A100: 95 | B100: 平湖街道 | C100: 常明村 | D100: 沈朝江 | E100: 22012519650915061x | F100: 4 | G100: 13904391607 | H100: 蒲公英 | I100: 300 | J100: 3850 | K100: 鸡.鹅 | L100: 18.5 | M100: 2120 | Q100: 600 | R100: 424 | S100: 1024
A101: 96 | B101: 平湖街道 | C101: 常明村 | D101: 李淑丽 | E101: 22012519700226062x | F101: 2 | G101: 13214414404 | H101: 黄瓜.茄子 | I101: 242 | J101: 1470 | K101: 鸡 | L101: 23 | M101: 1860 | Q101: 484 | R101: 372 | S101: 856
A102: 97 | B102: 平湖街道 | C102: 常明村 | D102: 王军 | E102: 220125195508160619 | F102: 2 | G102: 13578858206 | H102: 黏玉米 | I102: 540 | J102: 1800 | Q102: 1080 | R102: 0 | S102: 1080
A103: 98 | B103: 平湖街道 | C103: 常明村 | D103: 段井春 | E103: 220125194409130612 | F103: 2 | G103: 15804495761 | H103: 黄瓜.茄子.豆角 | I103: 350 | J103: 3460 | K103: 鸡。鹅 | L103: 15.16 | M103: 2800 | N103: 加工丧葬品（金元宝） | O103: 50 | P103: 3000 | Q103: 700 | R103: 1160 | S103: 1860
A104: 99 | B104: 平湖街道 | C104: 常明村 | D104: 朱乃君 | E104: 220125195310270636 | F104: 3 | G104: 15643237996 | H104: 豆角.葱.黏玉米 | I104: 270 | J104: 1900 | N104: 加工丧葬品（金元宝） | O104: 50 | P104: 3000 | Q104: 540 | R104: 600 | S104: 1140
A105: 100 | B105: 平湖街道 | C105: 常明村 | D105: 孙小丽 | E105: 220125197810160627 | F105: 4 | G105: 13804396988 | H105: 黄瓜.茄子.豆角 | I105: 254 | J105: 2060 | Q105: 508 | R105: 0 | S105: 508
A106: 101 | B106: 平湖街道 | C106: 常明村 | D106: 王丽清 | E106: 220125196505120624 | F106: 2 | G106: 15843169515 | H106: 黄瓜.茄子.豆角 | I106: 212 | J106: 1560 | Q106: 424 | R106: 0 | S106: 424
A107: 102 | B107: 平湖街道 | C107: 常明村 | D107: 齐香兰 | E107: 220112195904200449 | F107: 1 | G107: 19396236130 | N107: 加工丧葬品（金元宝） | O107: 50 | P107: 3000 | Q107: 0 | R107: 600 | S107: 600
A108: 103 | B108: 平湖街道 | C108: 常明村 | D108: 栗朝萍 | E108: 220112201305270427 | F108: 1 | G108: 18844032299 | H108: 豆角 | I108: 270 | J108: 1800 | Q108: 540 | R108: 0 | S108: 540
A109: 104 | B109: 平湖街道 | C109: 常明村 | D109: 刘丽 | E109: 220112195409090465 | F109: 1 | G109: 15567022130 | N109: 加工丧葬品（金元宝） | O109: 50 | P109: 3000 | Q109: 0 | R109: 600 | S109: 600
A110: 105 | B110: 平湖街道 | C110: 常明村 | D110: 狄秀华 | E110: 220125195309280626 | F110: 1 | G110: 18626901548 | N110: 加工丧葬品（金元宝） | O110: 50 | P110: 3000 | Q110: 0 | R110: 600 | S110: 600
A111: 106 | B111: 平湖街道 | C111: 常明村 | D111: 朱玉芹 | E111: 220125197005160624 | F111: 1 | G111: 13630560940 | H111: 黏玉米.豆角 | I111: 264 | J111: 1860 | Q111: 528 | R111: 0 | S111: 528
A112: 107 | B112: 平湖街道 | C112: 常明村 | D112: 张嘉海 | E112: 220125196210010612 | F112: 2 | G112: 18843128830 | H112: 黄瓜.茄子 | I112: 145 | J112: 1270 | K112: 鸡 | L112: 15 | M112: 1320 | Q112: 290 | R112: 264 | S112: 554
A113: 108 | B113: 平湖街道 | C113: 常明村 | D113: 栗云霞 | E113: 220125196012110620 | F113: 1 | G113: 13756607883 | H113: 黄瓜。豆角 | I113: 204 | J113: 2030 | Q113: 408 | R113: 0 | S113: 408
A114: 109 | B114: 平湖街道 | C114: 黑鱼村 | D114: 蒋芝 | E114: 220125195511160628 | F114: 1 | G114: 15567755543 | H114: 李子.龙丰果 | I114: 220 | J114: 700 | Q114: 440 | R114: 0 | S114: 440
A115: 110 | B115: 平湖街道 | C115: 黑鱼村 | D115: 于桂华 | E115: 220125195101170620 | F115: 1 | G115: 15143109313 | K115: 鸡.鹅 | L115: 30 | M115: 2000 | Q115: 0 | R115: 400 | S115: 400
A116: 111 | B116: 平湖街道 | C116: 城郊村 | D116: 李亚莲 | E116: 220125195602260624 | F116: 3 | G116: 15243143517 | H116: 豆角、茄子、辣椒、西红柿 | I116: 100 | J116: 500 | Q116: 200 | R116: 0 | S116: 200
A117: 112 | B117: 平湖街道 | C117: 城郊村 | D117: 单福 | E117: 220125196105150656 | F117: 3 | G117: 13756974870 | H117: 豆角、茄子、辣椒、大葱 | I117: 150 | J117: 800 | Q117: 300 | R117: 0 | S117: 300
A118: 113 | B118: 平湖街道 | C118: 城郊村 | D118: 李秀书 | E118: 22012519601105062X | F118: 1 | G118: 15143108115 | H118: 豆角、茄子、辣椒、西红柿 | I118: 200 | J118: 1000 | Q118: 400 | R118: 0 | S118: 400
A119: 114 | B119: 平湖街道 | C119: 宋家 | D119: 赵玉昌 | E119: 22011219510124021x | F119: 2 | G119: 13274302572 | H119: 蔬菜、黏玉米 | I119: 300 | J119: 800 | K119: 鸡、鹅 | L119: 80/60 | M119: 9500 | Q119: 600 | R119: 1900 | S119: 2500
A120: 115 | B120: 平湖街道 | C120: 宋家 | D120: 栗国军 | E120: 220125196908010657 | F120: 2 | G120: 15104441080 | H120: 蔬菜、黏玉米 | I120: 500 | J120: 2500 | K120: 鸡、鹅 | L120: 40/30 | M120: 6000 | Q120: 1000 | R120: 1200 | S120: 2200
A121: 116 | B121: 平湖街道 | C121: 宋家 | D121: 郭武 | E121: 220112196007150239 | F121: 3 | G121: 13943113657 | H121: 蔬菜、黏玉米 | I121: 500 | J121: 2500 | K121: 鸡、鹅 | L121: 35/25 | M121: 6000 | Q121: 1000 | R121: 1200 | S121: 2200
A122: 117 | B122: 平湖街道 | C122: 宋家 | D122: 刘德全 | E122: 220112195701290210 | F122: 2 | G122: 13756211139 | H122: 蔬菜、黏玉米 | I122: 500 | J122: 2000 | K122: 鸡、鹅 | L122: 15/20 | M122: 4500 | Q122: 1000 | R122: 900 | S122: 1900
A123: 118 | B123: 平湖街道 | C123: 宋家 | D123: 陈志有 | E123: 22012519570325061x | F123: 3 | G123: 15948287969 | H123: 蔬菜、黏玉米 | I123: 150 | J123: 400 | K123: 鸡、鹅 | L123: 10、20 | M123: 4000 | Q123: 300 | R123: 800 | S123: 1100
A124: 119 | B124: 平湖街道 | C124: 宋家 | D124: 鲁敬营 | E124: 220112195008050227 | F124: 1 | G124: 13578801488 | H124: 蔬菜、黏玉米 | I124: 200 | J124: 500 | K124: 鸡、鹅 | L124: 20/30 | M124: 5000 | Q124: 400 | R124: 1000 | S124: 1400
A125: 120 | B125: 平湖街道 | C125: 宋家 | D125: 郑桂兰 | E125: 220125194402210628 | F125: 1 | G125: 15844155226 | H125: 蔬菜 | I125: 200 | J125: 500 | Q125: 400 | S125: 400
A126: 121 | B126: 平湖街道 | C126: 宋家 | D126: 法德荣 | E126: 220125194909030618 | F126: 2 | G126: 13144319869 | H126: 蔬菜、黏玉米 | I126: 500 | J126: 1200 | Q126: 1000 | S126: 1000
A127: 122 | B127: 平湖街道 | C127: 宋家 | D127: 杨修彬 | E127: 220125195602140614 | F127: 2 | G127: 15643056497 | H127: 蔬菜、黏玉米 | I127: 500 | J127: 1300 | Q127: 1000 | S127: 1000
A128: 123 | B128: 平湖街道 | C128: 宋家 | D128: 任志江 | E128: 2201251955211120632 | F128: 1 | G128: 13756606318 | H128: 蔬菜 | I128: 150 | J128: 400 | Q128: 300 | S128: 300
A129: 124 | B129: 平湖街道 | C129: 宋家 | D129: 朱文叶 | E129: 220125195102270623 | F129: 1 | G129: 18244079373 | H129: 蔬菜、黏玉米 | I129: 500 | J129: 2000 | Q129: 1000 | S129: 1000
A130: 125 | B130: 平湖街道 | C130: 宋家 | D130: 梁素珍 | E130: 220125194801030640 | F130: 1 | G130: 13756609139 | H130: 蔬菜、黏玉米 | I130: 500 | J130: 1500 | Q130: 1000 | S130: 1000
A131: 126 | B131: 平湖街道 | C131: 宋家 | D131: 李洪伟 | E131: 220125197512200619 | F131: 1 | G131: 13578751168 | H131: 蔬菜、黏玉米 | I131: 500 | J131: 1200 | Q131: 1000 | S131: 1000
A132: 127 | B132: 平湖街道 | C132: 宋家 | D132: 吴英 | E132: 22012519660228062x | F132: 1 | G132: 13756840062 | H132: 蔬菜、黏玉米 | I132: 500 | J132: 1200 | Q132: 1000 | S132: 1000
A133: 128 | B133: 平湖街道 | C133: 宋家 | D133: 王绍成 | E133: 220125197510010678 | F133: 2 | G133: 15567153169 | H133: 蔬菜、黏玉米 | I133: 500 | J133: 1200 | Q133: 1000 | S133: 1000
A134: 129 | B134: 平湖街道 | C134: 宋家 | D134: 董井和 | E134: 220125195910040615 | F134: 1 | G134: 13756331583 | H134: 蔬菜 | I134: 400 | J134: 1000 | Q134: 800 | S134: 800
A135: 130 | B135: 平湖街道 | C135: 宋家 | D135: 王春宇 | E135: 220125197912220619 | F135: 1 | G135: 13756976239 | H135: 蔬菜 | I135: 300 | J135: 750 | Q135: 600 | S135: 600
A136: 131 | B136: 平湖街道 | C136: 宋家 | D136: 沈瑞兰 | E136: 220125194901200627 | F136: 1 | G136: 15948288287 | H136: 蔬菜 | I136: 400 | J136: 1000 | Q136: 800 | S136: 800
A137: 132 | B137: 平湖街道 | C137: 宋家 | D137: 于桂芝 | E137: 220125194312230625 | F137: 1 | G137: 15948126483 | H137: 蔬菜 | I137: 400 | J137: 1000 | Q137: 800 | S137: 800
A138: 133 | B138: 平湖街道 | C138: 宋家 | D138: 王淑琴 | E138: 220125194909290620 | F138: 1 | G138: 13604366243 | H138: 蔬菜 | I138: 400 | J138: 1000 | Q138: 800 | S138: 800
A139: 134 | B139: 平湖街道 | C139: 宋家 | D139: 李雪 | E139: 220112199910140022 | F139: 1 | G139: 13234304855 | H139: 蔬菜、黏玉米 | I139: 500 | J139: 1200 | Q139: 1000 | S139: 1000
A140: 135 | B140: 平湖街道 | C140: 宋家 | D140: 丁文学 | E140: 220125194411133214 | F140: 1 | G140: 13578961479 | H140: 蔬菜 | I140: 400 | J140: 1000 | Q140: 800 | S140: 800
A141: 136 | B141: 鹿乡镇 | C141: 鹿乡村 | D141: 孔庆海 | E141: 220125194605192618 | F141: 2 | G141: 13943112519 | K141: 梅花鹿 | L141: 13 | M141: 15000 | Q141: =2*IF(I141>=600,600,I141) -> 0 | R141: =0.2*IF(M141+P141>=11500,11500,M141+P141) -> 2300 | S141: =Q141+R141 -> 2300
A142: 137 | B142: 鹿乡镇 | C142: 鹿乡村 | D142: 孙素清 | E142: 220125195105102625 | F142: 2 | G142: 13500854666 | K142: 梅花鹿 | L142: 12 | M142: 10000 | Q142: 0 | R142: 2000 | S142: 2000
A143: 138 | B143: 鹿乡镇 | C143: 蔡家村 | D143: 霍春英 | E143: 220125194108092624 | F143: 2 | G143: 15804495660 | H143: 粘玉米 | I143: 500 | J143: 5000 | K143: 鸡\牛 | L143: 100、10 | M143: 24000 | Q143: 1000 | R143: 2300 | S143: 3300
A144: 139 | B144: 鹿乡镇 | C144: 蔡家村 | D144: 杨玉海 | E144: 220112197807222610 | F144: 4 | G144: 17843012470 | K144: 鸡 | L144: 100 | M144: 6000 | Q144: 0 | R144: 1200 | S144: 1200
A145: 140 | B145: 鹿乡镇 | C145: 蔡家村 | D145: 王玉芹 | E145: 220125194008272644 | F145: 1 | G145: 18643135781 | K145: 鸡 | L145: 100 | M145: 6000 | Q145: 0 | R145: 1200 | S145: 1200
A146: 141 | B146: 鹿乡镇 | C146: 蔡家村 | D146: 王海林 | E146: 220125195203232618 | F146: 2 | G146: 17843132505 | H146: 粘玉米 | I146: 200 | J146: 2000 | Q146: 400 | R146: 0 | S146: 400
A147: 142 | B147: 鹿乡镇 | C147: 蔡家村 | D147: 王清有 | E147: 220125193801062613 | F147: 1 | G147: 15948287387 | H147: 粘玉米 | I147: 280 | J147: 2000 | K147: 鸡 | L147: 100 | M147: 6000 | Q147: 560 | R147: 1200 | S147: 1760
A148: 143 | B148: 鹿乡镇 | C148: 蔡家村 | D148: 林玉兰 | E148: 220125196010072624 | F148: 2 | G148: 13596414064 | H148: 粘玉米 | I148: 500 | J148: 2000 | K148: 鸡 | L148: 100 | M148: 6000 | Q148: 1000 | R148: 1200 | S148: 2200
A149: 144 | B149: 鹿乡镇 | C149: 蔡家村 | D149: 郭秀艳 | E149: 22012519690119262X | F149: 2 | G149: 13756214748 | K149: 鸡 | L149: 100 | M149: 6000 | Q149: 0 | R149: 1200 | S149: 1200
A150: 145 | B150: 鹿乡镇 | C150: 蔡家村 | D150: 张世平 | E150: 220125196604122617 | F150: 2 | G150: 13244300446 | K150: 鸡 | L150: 100 | M150: 6000 | Q150: 0 | R150: 1200 | S150: 1200
A151: 146 | B151: 鹿乡镇 | C151: 蔡家村 | D151: 王萍 | E151: 220125196103272668 | F151: 1 | G151: 13844910081 | K151: 鸡 | L151: 100 | M151: 6000 | Q151: 0 | R151: 1200 | S151: 1200
A152: 147 | B152: 鹿乡镇 | C152: 蔡家村 | D152: 李久成 | E152: 220125194210162617 | F152: 2 | G152: 15164301505 | H152: 粘玉米 | I152: 1000 | J152: 6000 | K152: 鸡 | L152: 1000 | M152: 6000 | Q152: 1200 | R152: 1200 | S152: 2400
A153: 148 | B153: 鹿乡镇 | C153: 蔡家村 | D153: 林凤学 | E153: 220125195512262618 | F153: 1 | G153: 15764308754 | K153: 鸡 | L153: 50 | M153: 3000 | Q153: 0 | R153: 600 | S153: 600
A154: 149 | B154: 鹿乡镇 | C154: 蔡家村 | D154: 黄勤 | E154: 220125195306202614 | F154: 2 | G154: 15104442188 | K154: 鸡 | L154: 100 | M154: 6000 | Q154: 0 | R154: 1200 | S154: 1200
A155: 150 | B155: 鹿乡镇 | C155: 蔡家村 | D155: 梅淑芹 | E155: 22012519361120262X | F155: 1 | G155: 15104445058 | H155: 粘玉米 | I155: 290 | J155: 2000 | Q155: 580 | R155: 0 | S155: 580
A156: 151 | B156: 鹿乡镇 | C156: 蔡家村 | D156: 周树青 | E156: 220125194012082616 | F156: 2 | G156: 15164318893 | K156: 鸡 | L156: 100 | M156: 6000 | Q156: 0 | R156: =0.2*IF(M156+P156>=11500,11500,M156+P156) -> 1200 | S156: 1200
A157: 152 | B157: 鹿乡镇 | C157: 蔡家村 | D157: 孙福云 | E157: 220125194505222621 | F157: 1 | G157: 18743143504 | H157: 粘玉米 | I157: 480 | J157: 3500 | K157: 鸡、牛、马 | L157: 100、1、1 | M157: 14000 | Q157: 960 | R157: 2300 | S157: 3260
A158: 153 | B158: 鹿乡镇 | C158: 黑顶村 | D158: 郭向军 | E158: 220125194402203014 | F158: 1 | G158: 14743171445 | K158: 鸡 | L158: 14 | M158: 1400 | Q158: 0 | R158: 280 | S158: 280
A159: 154 | B159: 鹿乡镇 | C159: 黑顶村 | D159: 赵玉芹 | E159: 220112194208023026 | F159: 2 | G159: 18844522041 | K159: 鸡 | L159: 14 | M159: 1400 | Q159: 0 | R159: 280 | S159: 280
A160: 155 | B160: 鹿乡镇 | C160: 黑顶村 | D160: 李淑芬 | E160: 220125194501013021 | F160: 1 | G160: 15943147041 | H160: 蔬菜 | I160: 450 | J160: 2000 | K160: 鸡 | L160: 26 | M160: 2600 | Q160: 900 | R160: 520 | S160: 1420
A161: 156 | B161: 鹿乡镇 | C161: 黑顶村 | D161: 金桂云 | E161: 220112195502243024 | F161: 1 | G161: 18343179785 | H161: 粘玉米 | I161: 400 | J161: 3500 | K161: 鸡 | L161: 14 | M161: 1400 | Q161: 800 | R161: 280 | S161: 1080
A162: 157 | B162: 鹿乡镇 | C162: 黑顶村 | D162: 宋玉华 | E162: 220112195006103049 | F162: 1 | G162: 13578805939 | K162: 鸡 | L162: 34 | M162: 3400 | Q162: 0 | R162: 680 | S162: 680
A163: 158 | B163: 鹿乡镇 | C163: 黑顶村 | D163: 周兆富 | E163: 220125195212283011 | F163: 2 | G163: 13144299287 | K163: 鸡、鹅 | L163: 80 | M163: 10000 | Q163: 0 | R163: 2000 | S163: 2000
A164: 159 | B164: 鹿乡镇 | C164: 黑顶村 | D164: 杜占民 | E164: 220125195106103013 | F164: 2 | G164: 15943144781 | K164: 鸡 | L164: 14 | M164: 1400 | Q164: 0 | R164: 280 | S164: 280
A165: 160 | B165: 鹿乡镇 | C165: 黑顶村 | D165: 孙淑芬 | E165: 220125195909303027 | F165: 1 | G165: 18843128234 | K165: 鸡 | L165: 14 | M165: 1400 | Q165: 0 | R165: 280 | S165: 280
A166: 161 | B166: 鹿乡镇 | C166: 黑顶村 | D166: 徐连清 | E166: 220125195806163033 | F166: 1 | G166: 15044309434 | K166: 鸡 | L166: 14 | M166: 1400 | Q166: 0 | R166: 280 | S166: 280
A167: 162 | B167: 鹿乡镇 | C167: 黑顶村 | D167: 张保军 | E167: 22011219761029301x | F167: 2 | G167: 15143120769 | K167: 鸡、牛 | L167: 14、5 | M167: 4000 | Q167: 0 | R167: 800 | S167: 800
A168: 163 | B168: 鹿乡镇 | C168: 黑顶村 | D168: 赵启平 | E168: 220125196304233032 | F168: 1 | G168: 13756216832 | K168: 鸡 | L168: 14 | M168: 1400 | Q168: 0 | R168: 280 | S168: 280
A169: 164 | B169: 鹿乡镇 | C169: 黑顶村 | D169: 娄景祥 | E169: 220125194910013014 | F169: 2 | G169: 18744118986 | K169: 鸡、牛 | L169: 14、1 | M169: 13400 | Q169: 0 | R169: 2300 | S169: 2300
A170: 165 | B170: 鹿乡镇 | C170: 黑顶村 | D170: 国玉霞 | E170: 220125195505023029 | F170: 1 | G170: 13943118825 | K170: 鸡 | L170: 60 | M170: 6000 | Q170: 0 | R170: 1200 | S170: 1200
A171: 166 | B171: 鹿乡镇 | C171: 黑顶村 | D171: 董广臣 | E171: 22012519550404301x | F171: 2 | G171: 13756330284 | K171: 鸡 | L171: 45 | M171: 4500 | Q171: 0 | R171: 900 | S171: 900
A172: 167 | B172: 鹿乡镇 | C172: 黑顶村 | D172: 牛淑芳 | E172: 220125195501203049 | F172: 2 | G172: 13041382820 | H172: 粘玉米 | I172: 450 | J172: 4000 | K172: 鸡 | L172: 25 | M172: 2500 | Q172: 900 | R172: 500 | S172: 1400
A173: 168 | B173: 鹿乡镇 | C173: 黑顶村 | D173: 殷国栋 | E173: 220125194609233018 | F173: 2 | G173: 14798168680 | H173: 粘玉米 | I173: 400 | J173: 500 | K173: 鸡 | L173: 35 | M173: 3500 | Q173: 800 | R173: 700 | S173: 1500
A174: 169 | B174: 鹿乡镇 | C174: 黑顶村 | D174: 王亚州 | E174: 220125194708203017 | F174: 2 | G174: 13756377037 | K174: 鸡 | L174: 14 | M174: 1400 | Q174: 0 | R174: 280 | S174: 280
A175: 170 | B175: 鹿乡镇 | C175: 黑顶村 | D175: 郭淑芹 | E175: 220125193707263021 | F175: 1 | G175: 13214409838 | K175: 鸡 | L175: 14 | M175: 1400 | Q175: 0 | R175: 280 | S175: 280
A176: 171 | B176: 鹿乡镇 | C176: 黑顶村 | D176: 杜淑连 | E176: 220125194703213021 | F176: 1 | G176: 13630531905 | H176: 蔬菜 | I176: 400 | J176: 2000 | K176: 鸡 | L176: 35 | M176: 3500 | Q176: 800 | R176: 700 | S176: 1500
A177: 172 | B177: 鹿乡镇 | C177: 黑顶村 | D177: 陈庭芹 | E177: 220125195505283023 | F177: 1 | G177: 13943113028 | H177: 粘玉米 | I177: 450 | J177: 4500 | K177: 鸡 | L177: 28 | M177: 2800 | Q177: 900 | R177: 560 | S177: 1460
A178: 173 | B178: 鹿乡镇 | C178: 黑顶村 | D178: 祖秀华 | E178: 220125194609173027 | F178: 1 | G178: 18704406052 | K178: 鸡 | L178: 45 | M178: 4500 | Q178: 0 | R178: 900 | S178: 900
A179: 174 | B179: 鹿乡镇 | C179: 常家村 | D179: 沙淑荣 | E179: 220125195010293027 | F179: 1 | G179: 13756217041 | H179: 土豆、白菜、黏玉米 | I179: 600 | J179: 1300 | Q179: =I179*2 -> 1200 | R179: =M179*0.2 -> 0 | S179: 1200
A180: 175 | B180: 鹿乡镇 | C180: 常家村 | D180: 李兴 | E180: 22011219740510307X | F180: 3 | G180: 15843168669 | H180: 黏玉米、土豆、白菜 | I180: 590 | J180: 1290 | Q180: 1180 | R180: 0 | S180: 1180
A181: 176 | B181: 鹿乡镇 | C181: 常家村 | D181: 丁财 | E181: 220125196704103018 | F181: 2 | G181: 13614410495 | H181: 土豆、白菜、黏玉米 | I181: 580 | J181: 1300 | Q181: 1160 | R181: 0 | S181: 1160
A182: 177 | B182: 鹿乡镇 | C182: 常家村 | D182: 王香莲 | E182: 220125195611293022 | F182: 1 | G182: 13943112341 | H182: 黏玉米、豆角 | I182: 400 | J182: 1200 | Q182: 800 | R182: 0 | S182: 800
A183: 178 | B183: 鹿乡镇 | C183: 常家村 | D183: 贾宝才 | E183: 220125195705113037 | F183: 2 | G183: 16643009312 | H183: 土豆、白菜、黏玉米 | I183: 580 | J183: 1200 | Q183: 1160 | R183: 0 | S183: 1160
A184: 179 | B184: 鹿乡镇 | C184: 常家村 | D184: 贾相阳 | E184: 220125195312103014 | F184: 1 | G184: 15584272428 | K184: 猪 | L184: 2 | M184: 6000 | Q184: 0 | R184: 1200 | S184: 1200
A185: 180 | B185: 鹿乡镇 | C185: 常家村 | D185: 常春福 | E185: 220112196808143039 | F185: 1 | G185: 19558240447 | H185: 土豆、白菜 | I185: 200 | J185: 600 | Q185: 400 | R185: 0 | S185: 400
A186: 181 | B186: 鹿乡镇 | C186: 常家村 | D186: 周明吉 | E186: 220112195706133011 | F186: 1 | G186: 15144153250 | K186: 猪 | L186: 1 | M186: 3000 | Q186: 0 | R186: 600 | S186: 600
A187: 182 | B187: 鹿乡镇 | C187: 常家村 | D187: 孙振仁 | E187: 220125195707283013 | F187: 1 | G187: 18243174443 | H187: 黏玉米、白菜、土豆 | I187: 580 | J187: 1000 | Q187: 1160 | R187: 0 | S187: 1160
A188: 183 | B188: 鹿乡镇 | C188: 常家村 | D188: 崔淑华 | E188: 220125195211183027 | F188: 1 | G188: 13634412291 | H188: 土豆、白菜 | I188: 500 | J188: 1000 | Q188: 1000 | R188: 0 | S188: 1000
A189: 184 | B189: 鹿乡镇 | C189: 常家村 | D189: 高桂珍 | E189: 220125194109093020 | F189: 1 | G189: 13756215763 | H189: 黏玉米、大葱 | I189: 540 | J189: 980 | Q189: 1080 | R189: 0 | S189: 1080
A190: 185 | B190: 鹿乡镇 | C190: 常家村 | D190: 张文会 | E190: 220125195802023017 | F190: 2 | G190: 15948286587 | H190: 蔬菜 | I190: 600 | J190: 1000 | Q190: 1200 | R190: 0 | S190: 1200
A191: 186 | B191: 鹿乡镇 | C191: 常家村 | D191: 崔淑芬 | E191: 220125195110253049 | F191: 1 | G191: 13756214172 | H191: 土豆、白菜、黏玉米 | I191: 520 | J191: 1000 | Q191: 1040 | R191: 0 | S191: 1040
A192: 187 | B192: 鹿乡镇 | C192: 常家村 | D192: 马军 | E192: 220125195710103036 | F192: 1 | G192: 13159775371 | H192: 黏玉米 | I192: 500 | J192: 1300 | Q192: 1000 | R192: 0 | S192: 1000
A193: 188 | B193: 鹿乡镇 | C193: 常家村 | D193: 李凤海 | E193: 220125197111263010 | F193: 1 | G193: 15844151368 | H193: 黏玉米、土豆、白菜 | I193: 500 | J193: 1000 | Q193: 1000 | R193: 0 | S193: 1000
A194: 189 | B194: 鹿乡镇 | C194: 常家村 | D194: 苏万有 | E194: 220125193903063019 | F194: 2 | G194: 15584456125 | H194: 蔬菜 | I194: 300 | J194: 500 | Q194: 600 | R194: 0 | S194: 600
A195: 190 | B195: 鹿乡镇 | C195: 常家村 | D195: 常春海 | E195: 22012519611211301X | F195: 2 | G195: 18743145549 | H195: 蔬菜、黏玉米 | I195: 520 | J195: 920 | Q195: 1040 | R195: 0 | S195: 1040
A196: 191 | B196: 鹿乡镇 | C196: 常家村 | D196: 常春野 | E196: 22012519711003301042 | F196: 2 | G196: 15044309338 | K196: 猪 | L196: 1 | M196: 3000 | Q196: 0 | R196: 600 | S196: 600
A197: 192 | B197: 鹿乡镇 | C197: 常家村 | D197: 贾相春 | E197: 220125194911153035 | F197: 3 | G197: 15944001320 | H197: 土豆、白菜、黏玉米 | I197: 350 | J197: 1100 | Q197: 700 | R197: 0 | S197: 700
A198: 193 | B198: 鹿乡镇 | C198: 常家村 | D198: 李永山 | E198: 220125194305103011 | F198: 1 | G198: 15948285358 | K198: 猪 | L198: 1 | M198: 3000 | Q198: 0 | R198: 600 | S198: 600
A199: 194 | B199: 鹿乡镇 | C199: 常家村 | D199: 肖荣芬 | E199: 220125195409233042 | F199: 1 | G199: 13756216666 | K199: 猪 | L199: 1 | M199: 3000 | Q199: 0 | R199: 600 | S199: 600
A200: 195 | B200: 鹿乡镇 | C200: 信家村 | D200: 韦俊山 | E200: 220125196602212619 | F200: 1 | G200: 15844150076 | H200: 豆角 | I200: 150 | J200: 900 | Q200: =2*IF(I200>=600,600,I200) -> 300 | R200: 0 | S200: 300
... 771 more rows
